fUSD/lending_fUSD_20240224
["ID","MTS","AMOUNT","RATE_DAILY","PERIOD"]
[315077192,1708803154384,-619.86,0.00029041,2]
[315077193,1708803154394,-511.83624277,0.00029041,2]
[315077194,1708803154404,-500.0,0.00029041,2]
[315077195,1708803154414,-500.0,0.00029041,2]
[315077196,1708803154423,-547.91679166,0.00029041,2]
[315077197,1708803154432,-500.0,0.00029041,2]
[315077198,1708803154442,-500.0,0.00029041,2]
[315077199,1708803154451,-519.14,0.00029041,2]
[315077200,1708803154461,-500.0,0.00029041,2]
[315077201,1708803154470,-275.53930054,0.00029041,2]
[315077202,1708803154479,-500.0,0.00029041,2]
[315077203,1708803154489,-500.0,0.00029041,2]
[315077204,1708803154499,-500.0,0.00029041,2]
[315077205,1708803154509,-500.0,0.00029041,2]
[315077206,1708803154518,-1982.77,0.00029041,2]
[315077207,1708803154527,-500.0,0.00029041,2]
[315077208,1708803154538,-500.0,0.00029041,2]
[315077209,1708803154547,-500.0,0.00029041,2]
[315077210,1708803154558,-500.0,0.00029041,2]
[315077211,1708803154567,-500.0,0.00029041,2]
[315077212,1708803154578,-1114.49,0.00029041,2]
[315077213,1708803154588,-503.89885106,0.00029041,2]
[315077214,1708803154597,-500.0,0.00029041,2]
[315077215,1708803154607,-685.05,0.00029041,2]
[315077216,1708803154617,-500.0,0.00029041,2]
[315077217,1708803154627,-828.7,0.00029041,2]
[315077218,1708803154637,-500.0,0.00029041,2]
[315077219,1708803154646,-500.0,0.00029041,2]
[315077220,1708803154656,-500.0,0.00029041,2]
[315077221,1708803154665,-500.0,0.00029041,2]
[315077222,1708803154675,-500.0,0.00029041,2]
[315077223,1708803154685,-500.0,0.00029041,2]
[315077224,1708803154696,-500.0,0.00029041,2]
[315077225,1708803154706,-500.0,0.00029041,2]
[315077226,1708803154715,-500.0,0.00029041,2]
[315077227,1708803154725,-500.0,0.00029041,2]
[315077228,1708803154735,-500.0,0.00029041,2]
[315077229,1708803154745,-500.0,0.00029041,2]
[315077230,1708803154754,-500.0,0.00029041,2]
[315077231,1708803154764,-694.75,0.00029041,2]
[315077232,1708803154773,-500.0,0.00029041,2]
[315077233,1708803154783,-500.14,0.00029041,2]
[315077234,1708803154793,-500.0,0.00029041,2]
[315077235,1708803154803,-500.0,0.00029041,2]
[315077236,1708803154813,-500.0,0.00029041,2]
[315077237,1708803154822,-548.45,0.00029041,2]
[315077238,1708803154832,-500.0,0.00029041,2]
[315077239,1708803154841,-500.0,0.00029041,2]
[315077240,1708803154851,-500.0,0.00029041,2]
[315077241,1708803154860,-500.0,0.00029041,2]
[315077242,1708803154869,-500.0,0.00029041,2]
[315077243,1708803154879,-346.72861907,0.00029041,2]
[315077244,1708803154889,-500.0,0.00029041,2]
[315077245,1708803154899,-630.12,0.00029041,2]
[315077246,1708803154908,-722.41,0.00029041,2]
[315077247,1708803154918,-500.0,0.00029041,2]
[315077248,1708803154927,-500.0,0.00029041,2]
[315077249,1708803154937,-500.0,0.00029041,2]
[315077250,1708803154946,-500.0,0.00029041,2]
[315077251,1708803154956,-500.0,0.00029041,2]
[315077252,1708803154966,-500.0,0.00029041,2]
[315077253,1708803154975,-500.0,0.00029041,2]
[315077254,1708803154984,-964.39,0.00029041,2]
[315077255,1708803154994,-500.0,0.00029041,2]
[315077256,1708803155003,-500.0,0.00029041,2]
[315077257,1708803155013,-580.79,0.00029041,2]
[315077258,1708803155022,-1387.5,0.00029041,2]
[315077259,1708803155035,-500.0,0.00029041,2]
[315077260,1708803155046,-500.0,0.00029041,2]
[315077261,1708803155055,-500.0,0.00029041,2]
[315077262,1708803155065,-336.59842962,0.00029041,2]
[315077263,1708803155075,-701.81,0.00029041,2]
[315077264,1708803155085,-500.0,0.00029041,2]
[315077265,1708803155094,-500.0,0.00029041,2]
[315077266,1708803155104,-500.0,0.00029041,2]
[315077267,1708803155115,-500.0,0.00029041,2]
[315077268,1708803155125,-500.0,0.00029041,2]
[315077269,1708803155135,-500.0,0.00029041,2]
[315077270,1708803155145,-500.0,0.00029041,2]
[315077271,1708803155155,-500.0,0.00029041,2]
[315077272,1708803155164,-500.0,0.00029041,2]
[315077273,1708803155174,-500.0,0.00029041,2]
[315077274,1708803155184,-500.0,0.00029041,2]
[315077275,1708803155194,-584.23810371,0.00029041,2]
[315077276,1708803155205,-622.3,0.00029041,2]
[315077277,1708803155216,-556.69,0.00029041,2]
[315077278,1708803155226,-500.0,0.00029041,2]
[315077279,1708803155235,-503.86992775,0.00029041,2]
[315077280,1708803155245,-500.0,0.00029041,2]
[315077281,1708803155255,-500.0,0.00029041,2]
[315077282,1708803155264,-500.0,0.00029041,2]
[315077283,1708803155274,-612.78969014,0.00029041,2]
[315077284,1708803155283,-500.0,0.00029041,2]
[315077285,1708803155293,-805.17,0.00029041,2]
[315077286,1708803155303,-500.0,0.00029041,2]
[315077287,1708803155312,-500.0,0.00029041,2]
[315077288,1708803155322,-500.0,0.00029041,2]
[315077289,1708803155332,-678.99,0.00029041,2]
[315077290,1708803155342,-500.0,0.00029041,2]
[315077291,1708803155352,-500.0,0.00029041,2]
[315077292,1708803155362,-500.0,0.00029041,2]
[315077293,1708803155371,-500.0,0.00029041,2]
[315077294,1708803155381,-500.0,0.00029041,2]
[315077295,1708803155390,-500.0,0.00029041,2]
[315077296,1708803155400,-752.64,0.00029041,2]
[315077297,1708803155409,-500.0,0.00029041,2]
[315077298,1708803155419,-512.18,0.00029041,2]
[315077299,1708803155429,-500.0,0.00029041,2]
[315077300,1708803155439,-500.0,0.00029041,2]
[315077301,1708803155449,-500.0,0.00029041,2]
[315077302,1708803155458,-500.0,0.00029041,2]
[315077303,1708803155468,-500.0,0.00029041,2]
[315077304,1708803155478,-500.0,0.00029041,2]
[315077305,1708803155488,-500.0,0.00029041,2]
[315077306,1708803155498,-763.68,0.00029041,2]
[315077307,1708803155507,-500.0,0.00029041,2]
[315077308,1708803155516,-500.0,0.00029041,2]
[315077309,1708803155526,-500.0,0.00029041,2]
[315077310,1708803155535,-500.0,0.00029041,2]
[315077311,1708803155545,-500.0,0.00029041,2]
[315077312,1708803155556,-500.0,0.00029041,2]
[315077313,1708803155566,-500.0,0.00029041,2]
[315077314,1708803155576,-500.0,0.00029041,2]
[315077315,1708803155585,-680.64,0.00029041,2]
[315077316,1708803155595,-500.0,0.00029041,2]
[315077317,1708803155604,-500.0,0.00029041,2]
[315077318,1708803155613,-500.0,0.00029041,2]
[315077319,1708803155623,-500.0,0.00029041,2]
[315077320,1708803155650,-542.7604269,0.00029041,2]
[315077321,1708803155686,-671.17,0.00029041,2]
[315077322,1708803155731,-663.35,0.00029041,2]
[315077323,1708803155780,-500.0,0.00029041,2]
[315077324,1708803155792,-500.0,0.00029041,2]
[315077325,1708803155803,-500.0,0.00029041,2]
[315077326,1708803155813,-500.0,0.00029041,2]
[315077327,1708803155823,-703.93,0.00029041,2]
[315077328,1708803155834,-500.0,0.00029041,2]
[315077329,1708803155846,-500.0,0.00029041,2]
[315077330,1708803155856,-672.67,0.00029041,2]
[315077331,1708803155866,-500.0,0.00029041,2]
[315077332,1708803155876,-500.0,0.00029041,2]
[315077333,1708803155886,-500.0,0.00029041,2]
[315077334,1708803155895,-518.85835043,0.00029041,2]
[315077335,1708803155906,-818.29,0.00029041,2]
[315077336,1708803155916,-500.0,0.00029041,2]
[315077337,1708803155926,-1017.02,0.00029041,2]
[315077338,1708803155936,-676.14,0.00029041,2]
[315077339,1708803155946,-167.1574235,0.00029041,2]
[315077340,1708803155956,-689.28,0.00029041,2]
[315077341,1708803155966,-500.0,0.00029041,2]
[315077342,1708803155976,-550.08,0.00029041,2]
[315077343,1708803155986,-521.46687473,0.00029041,2]
[315077344,1708803155996,-968.72,0.00029041,2]
[315077345,1708803156006,-579.60655314,0.00029041,2]
[315077346,1708803156016,-3585.38,0.00029041,2]
[315077347,1708803156026,-500.0,0.00029041,2]
[315077348,1708803156038,-500.0,0.00029041,2]
[315077349,1708803156048,-500.0,0.00029041,2]
[315077350,1708803156058,-500.0,0.00029041,2]
[315077351,1708803156068,-536.25,0.00029041,2]
[315077352,1708803156079,-553.09,0.00029041,2]
[315077353,1708803156089,-500.0,0.00029041,2]
[315077354,1708803156099,-500.0,0.00029041,2]
[315077355,1708803156108,-500.0,0.00029041,2]
[315077356,1708803156120,-500.0,0.00029041,2]
[315077357,1708803156130,-500.0,0.00029041,2]
[315077358,1708803156140,-636.84,0.00029041,2]
[315077359,1708803156150,-729.45,0.00029041,2]
[315077360,1708803156159,-500.0,0.00029041,2]
[315077361,1708803156169,-500.0,0.00029041,2]
[315077362,1708803156179,-511.62,0.00029041,2]
[315077363,1708803156189,-500.0,0.00029041,2]
[315077364,1708803156198,-558.02660389,0.00029041,2]
[315077365,1708803156208,-500.0,0.00029041,2]
[315077366,1708803156218,-3400.85,0.00029041,2]
[315077367,1708803156228,-765.79,0.00029041,2]
[315077368,1708803156238,-500.0,0.00029041,2]
[315077369,1708803156248,-500.0,0.00029041,2]
[315077370,1708803156258,-500.0,0.00029041,2]
[315077371,1708803156267,-500.0,0.00029041,2]
[315077372,1708803156277,-500.0,0.00029041,2]
[315077373,1708803156287,-544.36,0.00029041,2]
[315077374,1708803156297,-500.0,0.00029041,2]
[315077375,1708803156307,-617.97,0.00029041,2]
[315077376,1708803156317,-805.71,0.00029041,2]
[315077377,1708803156327,-2048.3,0.00029041,2]
[315077378,1708803156337,-500.0,0.00029041,2]
[315077379,1708803156346,-500.0,0.00029041,2]
[315077380,1708803156356,-500.0,0.00029041,2]
[315077381,1708803156365,-500.0,0.00029041,2]
[315077382,1708803156374,-580.62,0.00029041,2]
[315077383,1708803156384,-500.0,0.00029041,2]
[315077384,1708803156393,-500.0,0.00029041,2]
[315077385,1708803156403,-500.0,0.00029041,2]
[315077386,1708803156412,-500.0,0.00029041,2]
[315077387,1708803156421,-500.0,0.00029041,2]
[315077388,1708803156431,-500.0,0.00029041,2]
[315077389,1708803156440,-500.0,0.00029041,2]
[315077390,1708803156450,-500.0,0.00029041,2]
[315077391,1708803156459,-524.29273941,0.00029041,2]
[315077392,1708803156469,-500.0,0.00029041,2]
[315077393,1708803156479,-500.0,0.00029041,2]
[315077394,1708803156489,-500.0,0.00029041,2]
[315077395,1708803156499,-1603.43,0.00029041,2]
[315077396,1708803156509,-500.0,0.00029041,2]
[315077397,1708803156519,-500.0,0.00029041,2]
[315077398,1708803156529,-500.0,0.00029041,2]
[315077399,1708803156538,-500.0,0.00029041,2]
[315077400,1708803156547,-500.0,0.00029041,2]
[315077401,1708803156556,-500.0,0.00029041,2]
[315077402,1708803156566,-590.28,0.00029041,2]
[315077403,1708803156575,-500.0,0.00029041,2]
[315077404,1708803156585,-500.0,0.00029041,2]
[315077405,1708803156594,-500.0,0.00029041,2]
[315077406,1708803156604,-500.0,0.00029041,2]
[315077407,1708803156614,-500.0,0.00029041,2]
[315077408,1708803156623,-500.0,0.00029041,2]
[315077409,1708803156633,-500.0,0.00029041,2]
[315077410,1708803156643,-500.0,0.00029041,2]
[315077411,1708803156653,-500.0,0.00029041,2]
[315077412,1708803156662,-1420.04,0.00029041,2]
[315077413,1708803156671,-500.0,0.00029041,2]
[315077414,1708803156681,-500.0,0.00029041,2]
[315077415,1708803156691,-500.0,0.00029041,2]
[315077416,1708803156700,-535.03256524,0.00029041,2]
[315077417,1708803156710,-508.01,0.00029041,2]
[315077418,1708803156719,-883.75,0.00029041,2]
[315077419,1708803156730,-500.0,0.00029041,2]
[315077420,1708803156739,-500.0,0.00029041,2]
[315077421,1708803156749,-522.97,0.00029041,2]
[315077422,1708803156759,-500.0,0.00029041,2]
[315077423,1708803156878,-500.0,0.00029041,2]
[315077424,1708803156888,-500.0,0.00029041,2]
[315077425,1708803156898,-500.0,0.00029041,2]
[315077426,1708803156907,-577.77,0.00029041,2]
[315077427,1708803156917,-500.0,0.00029041,2]
[315077428,1708803156926,-500.0,0.00029041,2]
[315077429,1708803156935,-500.0,0.00029041,2]
[315077430,1708803156945,-500.0,0.00029041,2]
[315077431,1708803156955,-500.0,0.00029041,2]
[315077432,1708803156964,-783.17,0.00029041,2]
[315077433,1708803156974,-803.41,0.00029041,2]
[315077434,1708803156983,-500.0,0.00029041,2]
[315077435,1708803156995,-546.45,0.00029041,2]
[315077436,1708803157006,-500.0,0.00029041,2]
[315077437,1708803157015,-500.0,0.00029041,2]
[315077438,1708803157025,-3299.19,0.00029041,2]
[315077439,1708803157037,-500.0,0.00029041,2]
[315077440,1708803157047,-1355.1,0.00029041,2]
[315077441,1708803157056,-500.0,0.00029041,2]
[315077442,1708803157066,-2056.09,0.00029041,2]
[315077443,1708803157076,-500.0,0.00029041,2]
[315077444,1708803157086,-500.0,0.00029041,2]
[315077445,1708803157094,-500.0,0.00029041,2]
[315077446,1708803157104,-500.0,0.00029041,2]
[315077447,1708803157116,-500.0,0.00029041,2]
[315077448,1708803157126,-3559.89,0.00029041,2]
[315077449,1708803157136,-500.0,0.00029041,2]
[315077450,1708803157145,-500.0,0.00029041,2]
[315077451,1708803157156,-802.48,0.00029041,2]
[315077452,1708803157166,-500.0,0.00029041,2]
[315077453,1708803157176,-500.0,0.00029041,2]
[315077454,1708803157186,-500.0,0.00029041,2]
[315077455,1708803157195,-500.0,0.00029041,2]
[315077456,1708803157205,-1301.76,0.00029041,2]
[315077457,1708803157214,-500.0,0.00029041,2]
[315077458,1708803157224,-500.0,0.00029041,2]
[315077459,1708803157233,-500.0,0.00029041,2]
[315077460,1708803157242,-500.0,0.00029041,2]
[315077461,1708803157252,-500.0,0.00029041,2]
[315077462,1708803157261,-2635.7,0.00029041,2]
[315077463,1708803157270,-500.0,0.00029041,2]
[315077464,1708803157279,-708.14,0.00029041,2]
[315077465,1708803157288,-1143.03,0.00029041,2]
[315077466,1708803157297,-500.0,0.00029041,2]
[315077467,1708803157306,-917.12,0.00029041,2]
[315077468,1708803157317,-608.36,0.00029041,2]
[315077469,1708803157326,-659.11,0.00029041,2]
[315077470,1708803157336,-500.0,0.00029041,2]
[315077471,1708803157345,-500.0,0.00029041,2]
[315077472,1708803157355,-500.0,0.00029041,2]
[315077473,1708803157365,-837.68,0.00029041,2]
[315077474,1708803157375,-500.0,0.00029041,2]
[315077475,1708803157384,-6793.12,0.00029041,2]
[315077476,1708803157394,-1609.45,0.00029041,2]
[315077477,1708803157403,-1113.76,0.00029041,2]
[315077478,1708803157413,-192.3,0.00029041,2]
[315077479,1708803157422,-500.0,0.00029041,2]
[315077480,1708803157432,-500.0,0.00029041,2]
[315077481,1708803157442,-1003.71,0.00029041,2]
[315077482,1708803157451,-2373.7,0.00029041,2]
[315077483,1708803157461,-500.0,0.00029041,2]
[315077484,1708803157470,-500.0,0.00029041,2]
[315077485,1708803157480,-500.0,0.00029041,2]
[315077486,1708803157489,-500.0,0.00029041,2]
[315077487,1708803157499,-500.0,0.00029041,2]
[315077488,1708803157508,-500.0,0.00029041,2]
[315077489,1708803157518,-2314.68,0.00029041,2]
[315077490,1708803157527,-500.0,0.00029041,2]
[315077491,1708803157537,-500.0,0.00029041,2]
[315077492,1708803157547,-1613.34,0.00029041,2]
[315077493,1708803157556,-500.0,0.00029041,2]
[315077494,1708803157566,-1242.35,0.00029041,2]
[315077495,1708803157576,-660.51,0.00029041,2]
[315077496,1708803157585,-690.4,0.00029041,2]
[315077497,1708803157594,-500.0,0.00029041,2]
[315077498,1708803157604,-500.0,0.00029041,2]
[315077499,1708803157613,-500.0,0.00029041,2]
[315077500,1708803157622,-500.0,0.00029041,2]
[315077501,1708803157631,-2690.21,0.00029041,2]
[315077502,1708803157642,-500.0,0.00029041,2]
[315077503,1708803157651,-7014.8,0.00029041,2]
[315077504,1708803157661,-1270.85,0.00029041,2]
[315077505,1708803157672,-500.0,0.00029041,2]
[315077506,1708803157682,-500.0,0.00029041,2]
[315077507,1708803157693,-2320.5,0.00029041,2]
[315077508,1708803157703,-5957.84,0.00029041,2]
[315077509,1708803157713,-500.0,0.00029041,2]
[315077510,1708803157724,-500.0,0.00029041,2]
[315077511,1708803157735,-500.0,0.00029041,2]
[315077512,1708803157746,-500.0,0.00029041,2]
[315077513,1708803157756,-500.0,0.00029041,2]
[315077514,1708803157766,-500.0,0.00029041,2]
[315077515,1708803157776,-1555.66,0.00029041,2]
[315077516,1708803157786,-1338.89,0.00029041,2]
[315077517,1708803157796,-500.0,0.00029041,2]
[315077518,1708803157807,-500.0,0.00029041,2]
[315077519,1708803157817,-4041.57,0.00029041,2]
[315077520,1708803157828,-607.55,0.00029041,2]
[315077521,1708803157838,-500.0,0.00029041,2]
[315077522,1708803157849,-500.0,0.00029041,2]
[315077523,1708803157859,-500.0,0.00029041,2]
[315077524,1708803157869,-500.0,0.00029041,2]
[315077525,1708803157879,-500.0,0.00029041,2]
[315077526,1708803157889,-17314.55,0.00029041,2]
[315077527,1708803157899,-500.0,0.00029041,2]
[315077528,1708803157909,-500.0,0.00029041,2]
[315077529,1708803157919,-500.0,0.00029041,2]
[315077530,1708803157930,-500.0,0.00029041,2]
[315077531,1708803157940,-500.0,0.00029041,2]
[315077532,1708803157951,-537.92,0.00029041,2]
[315077533,1708803157962,-500.0,0.00029041,2]
[315077534,1708803157972,-500.0,0.00029041,2]
[315077535,1708803157982,-500.0,0.00029041,2]
[315077536,1708803157992,-500.0,0.00029041,2]
[315077537,1708803158002,-500.0,0.00029041,2]
[315077538,1708803158012,-500.0,0.00029041,2]
[315077539,1708803158023,-500.0,0.00029041,2]
[315077540,1708803158034,-1672.21,0.00029041,2]
[315077541,1708803158046,-500.0,0.00029041,2]
[315077542,1708803158056,-500.0,0.00029041,2]
[315077543,1708803158065,-572.47,0.00029041,2]
[315077544,1708803158075,-961.1,0.00029041,2]
[315077545,1708803158085,-500.0,0.00029041,2]
[315077546,1708803158095,-500.0,0.00029041,2]
[315077547,1708803158106,-500.0,0.00029041,2]
[315077548,1708803158118,-524.87358099,0.00029041,2]
[315077549,1708803158128,-500.0,0.00029041,2]
[315077550,1708803158139,-500.0,0.00029041,2]
[315077551,1708803158149,-500.0,0.00029041,2]
[315077552,1708803158159,-5616.67,0.00029041,2]
[315077553,1708803158170,-529.43,0.00029041,2]
[315077554,1708803158181,-500.0,0.00029041,2]
[315077555,1708803158191,-500.0,0.00029041,2]
[315077556,1708803158202,-524.87,0.00029041,2]
[315077557,1708803158212,-500.0,0.00029041,2]
[315077558,1708803158222,-500.0,0.00029041,2]
[315077559,1708803158234,-500.0,0.00029041,2]
[315077560,1708803158245,-4701.11,0.00029041,2]
[315077561,1708803158256,-1428.36,0.00029041,2]
[315077562,1708803158268,-795.2,0.00029041,2]
[315077563,1708803158279,-224.53345243,0.00029041,2]
[315077564,1708803158290,-500.0,0.00029041,2]
[315077565,1708803158301,-500.0,0.00029041,2]
[315077566,1708803158312,-500.0,0.00029041,2]
[315077567,1708803158322,-854.47,0.00029041,2]
[315077568,1708803158334,-1665.61,0.00029041,2]
[315077569,1708803158345,-4566.55,0.00029041,2]
[315077570,1708803158356,-549.5842372,0.00029041,2]
[315077571,1708803158367,-500.0,0.00029041,2]
[315077572,1708803158378,-823.53,0.00029041,2]
[315077573,1708803158389,-500.0,0.00029041,2]
[315077574,1708803158401,-500.0,0.00029041,2]
[315077575,1708803158412,-764.15,0.00029041,2]
[315077576,1708803158423,-500.0,0.00029041,2]
[315077577,1708803158434,-500.0,0.00029041,2]
[315077578,1708803158445,-526.20364601,0.00029041,2]
[315077579,1708803158456,-500.0,0.00029041,2]
[315077580,1708803158467,-1454.56,0.00029041,2]
[315077581,1708803158478,-9398.91,0.00029041,2]
[315077582,1708803158513,-827.47,0.00029041,2]
[315077583,1708803158525,-580.01,0.00029041,2]
[315077584,1708803158536,-500.0,0.00029041,2]
[315077585,1708803158547,-524.27,0.00029041,2]
[315077586,1708803158559,-500.0,0.00029041,2]
[315077587,1708803158572,-500.0,0.00029041,2]
[315077588,1708803158584,-500.0,0.00029041,2]
[315077589,1708803158594,-500.0,0.00029041,2]
[315077590,1708803158605,-1842.2,0.00029041,2]
[315077591,1708803158616,-500.0,0.00029041,2]
[315077592,1708803158627,-511.51,0.00029041,2]
[315077593,1708803158637,-500.0,0.00029041,2]
[315077594,1708803158648,-1147.43,0.00029041,2]
[315077595,1708803158658,-500.0,0.00029041,2]
[315077596,1708803158669,-500.0,0.00029041,2]
[315077597,1708803158680,-541.31,0.00029041,2]
[315077598,1708803158691,-995.13,0.00029041,2]
[315077599,1708803158701,-500.0,0.00029041,2]
[315077600,1708803158712,-500.0,0.00029041,2]
[315077601,1708803158724,-500.0,0.00029041,2]
[315077602,1708803158734,-5408.04,0.00029041,2]
[315077603,1708803158746,-500.0,0.00029041,2]
[315077604,1708803158757,-667.27,0.00029041,2]
[315077605,1708803158768,-500.0,0.00029041,2]
[315077606,1708803158779,-538.59,0.00029041,2]
[315077607,1708803158790,-631.46,0.00029041,2]
[315077608,1708803158801,-989.86,0.00029041,2]
[315077609,1708803158812,-889.85,0.00029041,2]
[315077610,1708803158823,-813.16,0.00029041,2]
[315077611,1708803158834,-500.0,0.00029041,2]
[315077612,1708803158855,-500.0,0.00029041,2]
[315077613,1708803158871,-1010.54,0.00029041,2]
[315077614,1708803158891,-500.0,0.00029041,2]
[315077615,1708803158910,-702.19,0.00029041,2]
[315077616,1708803158926,-2273.32,0.00029041,2]
[315077617,1708803158943,-500.0,0.00029041,2]
[315077618,1708803158960,-5172.46,0.00029041,2]
[315077619,1708803158980,-967.34,0.00029041,2]
[315077620,1708803158997,-500.0,0.00029041,2]
[315077621,1708803159016,-964.79,0.00029041,2]
[315077622,1708803159038,-500.0,0.00029041,2]
[315077623,1708803159054,-500.0,0.00029041,2]
[315077624,1708803159069,-500.0,0.00029041,2]
[315077625,1708803159088,-500.0,0.00029041,2]
[315077626,1708803159102,-599.51,0.00029041,2]
[315077627,1708803159124,-500.0,0.00029041,2]
[315077628,1708803159140,-500.0,0.00029041,2]
[315077629,1708803159155,-500.0,0.00029041,2]
[315077630,1708803159172,-752.25,0.00029041,2]
[315077631,1708803159189,-500.0,0.00029041,2]
[315077632,1708803159206,-587.58,0.00029041,2]
[315077633,1708803159222,-500.0,0.00029041,2]
[315077634,1708803159238,-500.0,0.00029041,2]
[315077635,1708803159254,-1254.89,0.00029041,2]
[315077636,1708803159271,-500.0,0.00029041,2]
[315077637,1708803159288,-625.57,0.00029041,2]
[315077638,1708803159306,-1064.6,0.00029041,2]
[315077639,1708803159324,-588.64,0.00029041,2]
[315077640,1708803159340,-500.0,0.00029041,2]
[315077641,1708803159356,-500.0,0.00029041,2]
[315077642,1708803159372,-1164.09,0.00029041,2]
[315077643,1708803159387,-500.0,0.00029041,2]
[315077644,1708803159403,-500.0,0.00029041,2]
[315077645,1708803159420,-500.0,0.00029041,2]
[315077646,1708803159437,-500.0,0.00029041,2]
[315077647,1708803159453,-500.0,0.00029041,2]
[315077648,1708803159468,-1100.36,0.00029041,2]
[315077649,1708803159484,-617.74,0.00029041,2]
[315077650,1708803159499,-500.0,0.00029041,2]
[315077651,1708803159514,-500.0,0.00029041,2]
[315077652,1708803159531,-1036.73,0.00029041,2]
[315077653,1708803159548,-500.0,0.00029041,2]
[315077654,1708803159564,-709.2,0.00029041,2]
[315077655,1708803159581,-500.0,0.00029041,2]
[315077656,1708803159597,-500.0,0.00029041,2]
[315077657,1708803159612,-500.0,0.00029041,2]
[315077658,1708803159627,-940.79,0.00029041,2]
[315077659,1708803159642,-2912.08,0.00029041,2]
[315077660,1708803159658,-500.0,0.00029041,2]
[315077661,1708803159674,-500.0,0.00029041,2]
[315077662,1708803159691,-500.0,0.00029041,2]
[315077663,1708803159707,-500.0,0.00029041,2]
[315077664,1708803159724,-500.0,0.00029041,2]
[315077665,1708803159740,-1056.04,0.00029041,2]
[315077666,1708803159755,-500.0,0.00029041,2]
[315077667,1708803159771,-500.0,0.00029041,2]
[315077668,1708803159787,-500.0,0.00029041,2]
[315077669,1708803159803,-2790.69,0.00029041,2]
[315077670,1708803159820,-2749.09,0.00029041,2]
[315077671,1708803159836,-500.0,0.00029041,2]
[315077672,1708803159851,-1119.12,0.00029041,2]
[315077673,1708803159865,-1223.47,0.00029041,2]
[315077674,1708803159882,-500.0,0.00029041,2]
[315077675,1708803159896,-1975.24,0.00029041,2]
[315077676,1708803159911,-500.0,0.00029041,2]
[315077677,1708803159924,-500.0,0.00029041,2]
[315077678,1708803159938,-1958.55,0.00029041,2]
[315077679,1708803159952,-500.0,0.00029041,2]
[315077680,1708803159966,-549.07,0.00029041,2]
[315077681,1708803159980,-775.63,0.00029041,2]
[315077682,1708803159995,-500.0,0.00029041,2]
[315077683,1708803160012,-500.0,0.00029041,2]
[315077684,1708803160027,-500.0,0.00029041,2]
[315077685,1708803160045,-500.0,0.00029041,2]
[315077686,1708803160059,-970.01,0.00029041,2]
[315077687,1708803160075,-500.0,0.00029041,2]
[315077688,1708803160090,-1744.69,0.00029041,2]
[315077689,1708803160105,-1611.08,0.00029041,2]
[315077690,1708803160121,-525.19027506,0.00029041,2]
[315077691,1708803160135,-814.05,0.00029041,2]